[Event "Early-Titled-Tuesday-Blitz-April-16-2024"]
[Site "Chess.com"]
[Date "2024.04.16"]
[Round "8"]
[White "jbking07"]
[Black "RamyresCoelho"]
[Result "1-0"]
[WhiteElo "2420"]
[BlackElo "2292"]
[TimeControl "180+1"]
[EndTime "9:28:34 PDT"]
[Termination "jbking07 won by checkmate"]

1. e4 {[%clk 0:03:00.9]} 1... c5 {[%clk 0:02:02.1]} 2. Nf3 {[%clk 0:03:00.7]}
2... d6 {[%clk 0:00:17.1]} 3. d4 {[%clk 0:03:00.2]} 3... cxd4 {[%clk 0:00:17.1]}
4. Nxd4 {[%clk 0:03:01.1]} 4... Nf6 {[%clk 0:00:18]} 5. Nc3 {[%clk 0:03:01.6]}
5... e5 {[%clk 0:00:18.2]} 6. Bb5+ {[%clk 0:03:00.5]} 6... Bd7 {[%clk
0:00:17.9]} 7. Nf5 {[%clk 0:02:52.5]} 7... Bxb5 {[%clk 0:00:16.8]} 8. Nxb5
{[%clk 0:02:52.7]} 8... a6 {[%clk 0:00:16.6]} 9. Nbxd6+ {[%clk 0:02:51]} 9...
Bxd6 {[%clk 0:00:17.5]} 10. Nxd6+ {[%clk 0:02:51.6]} 10... Ke7 {[%clk
0:00:16.9]} 11. Nf5+ {[%clk 0:02:51.5]} 11... Ke6 {[%clk 0:00:15.7]} 12. Nxg7+
{[%clk 0:02:46.9]} 12... Ke7 {[%clk 0:00:13.1]} 13. Nf5+ {[%clk 0:02:47.8]}
13... Ke6 {[%clk 0:00:13.3]} 14. Qf3 {[%clk 0:02:41]} 14... Qa5+ {[%clk
0:00:12.3]} 15. Bd2 {[%clk 0:02:38.4]} 15... Qb5 {[%clk 0:00:12.5]} 16. O-O-O
{[%clk 0:02:29.7]} 16... Nc6 {[%clk 0:00:12.2]} 17. Bg5 {[%clk 0:02:25.2]} 17...
Rhg8 {[%clk 0:00:03.8]} 18. Rd6# {[%clk 0:02:24.6]} 1-0

[Event "Early-Titled-Tuesday-Blitz-April-16-2024"]
[Site "Chess.com"]
[Date "2024.04.16"]
[Round "8"]
[White "ChessSwole"]
[Black "yonaltimur"]
[Result "1-0"]
[WhiteElo "2680"]
[BlackElo "2430"]
[TimeControl "180+1"]
[EndTime "9:28:47 PDT"]
[Termination "ChessSwole won by resignation"]

1. d4 {[%clk 0:02:56.9]} 1... d5 {[%clk 0:03:00]} 2. Nf3 {[%clk 0:02:56]} 2...
Nf6 {[%clk 0:02:59.1]} 3. Bf4 {[%clk 0:02:56.3]} 3... c5 {[%clk 0:02:58.3]} 4.
e3 {[%clk 0:02:56.9]} 4... Nc6 {[%clk 0:02:56.8]} 5. Nbd2 {[%clk 0:02:56.5]}
5... cxd4 {[%clk 0:02:51.4]} 6. exd4 {[%clk 0:02:56.4]} 6... Qb6 {[%clk
0:02:51.6]} 7. Nb3 {[%clk 0:02:56.5]} 7... Bf5 {[%clk 0:02:46.1]} 8. c3 {[%clk
0:02:52.5]} 8... h6 {[%clk 0:02:44.9]} 9. a4 {[%clk 0:02:51.8]} 9... e6 {[%clk
0:02:44.1]} 10. a5 {[%clk 0:02:51.6]} 10... Qd8 {[%clk 0:02:42]} 11. a6 {[%clk
0:02:49.9]} 11... b6 {[%clk 0:02:35.4]} 12. Bb5 {[%clk 0:02:49.4]} 12... Rc8
{[%clk 0:02:33.1]} 13. Ne5 {[%clk 0:02:49.3]} 13... Qd6 {[%clk 0:02:25.7]} 14.
Ng6 {[%clk 0:02:27.3]} 14... Qd7 {[%clk 0:02:16.2]} 15. Nxh8 {[%clk 0:02:19.7]}
15... Bd6 {[%clk 0:02:16]} 16. Bxd6 {[%clk 0:02:16.8]} 16... Qxd6 {[%clk
0:02:16.9]} 17. O-O {[%clk 0:02:14.7]} 17... Kf8 {[%clk 0:02:16.6]} 18. Bd3
{[%clk 0:02:06.5]} 18... Bxd3 {[%clk 0:02:14.8]} 19. Qxd3 {[%clk 0:02:07.4]}
19... Kg8 {[%clk 0:02:14.7]} 20. Nxf7 {[%clk 0:02:03.9]} 20... Kxf7 {[%clk
0:02:11]} 21. h3 {[%clk 0:02:01.9]} 21... Ne7 {[%clk 0:00:57.3]} 22. Nd2 {[%clk
0:01:57.8]} 22... Ng6 {[%clk 0:00:46.4]} 23. Rae1 {[%clk 0:01:54.6]} 23... Re8
{[%clk 0:00:45.5]} 24. Nf3 {[%clk 0:01:53.5]} 24... Nf4 {[%clk 0:00:44.8]} 25.
Qe3 {[%clk 0:01:51.1]} 25... Ng6 {[%clk 0:00:41.6]} 26. Ne5+ {[%clk 0:01:51.3]}
1-0

[Event "Early-Titled-Tuesday-Blitz-April-16-2024"]
[Site "Chess.com"]
[Date "2024.04.16"]
[Round "8"]
[White "Let_it_be_1"]
[Black "kripri"]
[Result "1-0"]
[WhiteElo "2596"]
[BlackElo "2371"]
[TimeControl "180+1"]
[EndTime "9:28:50 PDT"]
[Termination "Let_it_be_1 won by resignation"]

1. e4 {[%clk 0:03:00.9]} 1... c5 {[%clk 0:02:51.8]} 2. Nf3 {[%clk 0:03:00.3]}
2... d6 {[%clk 0:02:51.4]} 3. d4 {[%clk 0:03:00.6]} 3... cxd4 {[%clk 0:02:52]}
4. Nxd4 {[%clk 0:03:01.3]} 4... Nf6 {[%clk 0:02:52.3]} 5. Nc3 {[%clk 0:03:01.8]}
5... a6 {[%clk 0:02:52]} 6. Be2 {[%clk 0:03:02.1]} 6... e5 {[%clk 0:02:51.7]} 7.
Nb3 {[%clk 0:03:02.2]} 7... Be6 {[%clk 0:02:51.8]} 8. f4 {[%clk 0:03:01.6]} 8...
Be7 {[%clk 0:02:40.7]} 9. O-O {[%clk 0:03:01.3]} 9... Qb6+ {[%clk 0:02:34.2]}
10. Kh1 {[%clk 0:03:00.9]} 10... h5 {[%clk 0:02:34.9]} 11. f5 {[%clk 0:02:58.4]}
11... Bxb3 {[%clk 0:02:33.1]} 12. axb3 {[%clk 0:02:57.6]} 12... Nc6 {[%clk
0:02:29]} 13. Bg5 {[%clk 0:02:56.1]} 13... Ng4 {[%clk 0:02:17.1]} 14. Bxe7
{[%clk 0:02:52.4]} 14... Nxe7 {[%clk 0:02:16.1]} 15. Bxg4 {[%clk 0:02:48.5]}
15... hxg4 {[%clk 0:02:15.8]} 16. Qxg4 {[%clk 0:02:48.2]} 16... Rh7 {[%clk
0:01:57.6]} 17. f6 {[%clk 0:02:43.6]} 17... gxf6 {[%clk 0:01:50.9]} 18. Rxf6
{[%clk 0:02:43.6]} 18... Rd8 {[%clk 0:01:14.9]} 19. Raf1 {[%clk 0:02:33.9]}
19... Qe3 {[%clk 0:01:09.9]} 20. h3 {[%clk 0:02:06.8]} 20... Kf8 {[%clk
0:00:58]} 21. Qe6 {[%clk 0:01:55]} 21... Ke8 {[%clk 0:00:48.2]} 22. Rxf7 {[%clk
0:01:52.6]} 22... Rxf7 {[%clk 0:00:36.5]} 23. Qxf7+ {[%clk 0:01:51.7]} 23... Kd7
{[%clk 0:00:35.7]} 24. Qxe7+ {[%clk 0:01:51.6]} 1-0

[Event "Early-Titled-Tuesday-Blitz-April-16-2024"]
[Site "Chess.com"]
[Date "2024.04.16"]
[Round "8"]
[White "Maftuna2303"]
[Black "KubaGepard"]
[Result "0-1"]
[WhiteElo "2374"]
[BlackElo "2577"]
[TimeControl "180+1"]
[EndTime "9:28:52 PDT"]
[Termination "KubaGepard won by resignation"]

1. e4 {[%clk 0:03:00.9]} 1... e5 {[%clk 0:02:59.5]} 2. Nf3 {[%clk 0:03:00.9]}
2... Nc6 {[%clk 0:03:00.1]} 3. Bb5 {[%clk 0:03:00]} 3... a6 {[%clk 0:02:57.7]}
4. Ba4 {[%clk 0:02:59.9]} 4... Nf6 {[%clk 0:02:57]} 5. O-O {[%clk 0:03:00.1]}
5... Be7 {[%clk 0:02:56.6]} 6. Re1 {[%clk 0:02:58.9]} 6... b5 {[%clk 0:02:56.8]}
7. Bb3 {[%clk 0:02:58.6]} 7... d6 {[%clk 0:02:57.7]} 8. c3 {[%clk 0:02:58.8]}
8... O-O {[%clk 0:02:58.1]} 9. d3 {[%clk 0:02:55.7]} 9... Na5 {[%clk 0:02:56.4]}
10. Bc2 {[%clk 0:02:55.8]} 10... c5 {[%clk 0:02:57.3]} 11. h3 {[%clk 0:02:55.5]}
11... Nc6 {[%clk 0:02:57.7]} 12. Nbd2 {[%clk 0:02:55.7]} 12... h6 {[%clk
0:02:56.7]} 13. Nf1 {[%clk 0:02:55.9]} 13... Re8 {[%clk 0:02:57]} 14. Ng3 {[%clk
0:02:56.1]} 14... Be6 {[%clk 0:02:57.5]} 15. d4 {[%clk 0:02:54.5]} 15... cxd4
{[%clk 0:02:56.3]} 16. cxd4 {[%clk 0:02:54.8]} 16... exd4 {[%clk 0:02:56.8]} 17.
Nxd4 {[%clk 0:02:55.2]} 17... Nxd4 {[%clk 0:02:56.9]} 18. Qxd4 {[%clk
0:02:55.5]} 18... Rc8 {[%clk 0:02:54.1]} 19. Bd3 {[%clk 0:02:55.5]} 19... Nd7
{[%clk 0:02:46]} 20. Nf5 {[%clk 0:02:47.3]} 20... Bf6 {[%clk 0:02:45.5]} 21. Qb4
{[%clk 0:02:40.2]} 21... Nc5 {[%clk 0:02:33.9]} 22. Bf1 {[%clk 0:02:32.9]} 22...
a5 {[%clk 0:02:32.5]} 23. Qd2 {[%clk 0:02:22.4]} 23... Bg5 {[%clk 0:02:30.2]}
24. f4 {[%clk 0:02:19.1]} 24... Bxf5 {[%clk 0:02:27.2]} 25. exf5 {[%clk
0:02:16.9]} 25... Rxe1 {[%clk 0:02:14.9]} 26. Qxe1 {[%clk 0:02:16.8]} 26... Bf6
{[%clk 0:02:15.3]} 27. Rb1 {[%clk 0:02:11]} 27... d5 {[%clk 0:02:06.3]} 28. Bd2
{[%clk 0:02:08.6]} 28... b4 {[%clk 0:02:02.8]} 29. b3 {[%clk 0:02:06.1]} 29...
Ne4 {[%clk 0:02:02.1]} 30. Rd1 {[%clk 0:01:59.8]} 30... Qb6+ {[%clk 0:01:56.5]}
31. Kh2 {[%clk 0:01:57.5]} 31... Bd4 {[%clk 0:01:56]} 32. Be2 {[%clk 0:01:38.7]}
32... Bf2 {[%clk 0:01:53.8]} 33. Rc1 {[%clk 0:01:26.8]} 33... Rxc1 {[%clk
0:01:48.4]} 34. Qxc1 {[%clk 0:01:25.5]} 34... Bg3+ {[%clk 0:01:48.6]} 35. Kh1
{[%clk 0:01:24.2]} 35... Nf2+ {[%clk 0:01:49.1]} 36. Kg1 {[%clk 0:01:23.8]}
36... Nxh3+ {[%clk 0:01:46.5]} 37. Kh1 {[%clk 0:01:19.6]} 37... Nf2+ {[%clk
0:01:43.9]} 38. Kg1 {[%clk 0:01:19.7]} 38... Nd3+ {[%clk 0:01:42.4]} 39. Be3
{[%clk 0:01:19.8]} 39... Nxc1 {[%clk 0:01:42.6]} 40. Bxb6 {[%clk 0:01:19.8]}
40... Nxe2+ {[%clk 0:01:43]} 0-1

[Event "Early-Titled-Tuesday-Blitz-April-16-2024"]
[Site "Chess.com"]
[Date "2024.04.16"]
[Round "8"]
[White "HighLawView"]
[Black "michaelskie11"]
[Result "0-1"]
[WhiteElo "2116"]
[BlackElo "2386"]
[TimeControl "180+1"]
[EndTime "9:28:52 PDT"]
[Termination "michaelskie11 won by resignation"]

1. e4 {[%clk 0:03:00.6]} 1... e6 {[%clk 0:02:58.8]} 2. d4 {[%clk 0:02:56.8]}
2... d5 {[%clk 0:02:58.7]} 3. Nd2 {[%clk 0:02:56.6]} 3... a6 {[%clk 0:02:58.4]}
4. Ngf3 {[%clk 0:02:51.9]} 4... c5 {[%clk 0:02:57.5]} 5. Bd3 {[%clk 0:02:44.9]}
5... Nc6 {[%clk 0:02:55.4]} 6. c3 {[%clk 0:02:42.5]} 6... cxd4 {[%clk 0:02:51]}
7. cxd4 {[%clk 0:02:40.3]} 7... Nf6 {[%clk 0:02:50.4]} 8. O-O {[%clk 0:02:37.1]}
8... Be7 {[%clk 0:02:48.7]} 9. Qe2 {[%clk 0:02:36.3]} 9... O-O {[%clk 0:02:37]}
10. Re1 {[%clk 0:02:32.9]} 10... dxe4 {[%clk 0:02:35.3]} 11. Nxe4 {[%clk
0:02:31]} 11... Nxd4 {[%clk 0:02:35.5]} 12. Nxd4 {[%clk 0:02:27.4]} 12... Qxd4
{[%clk 0:02:35]} 13. Be3 {[%clk 0:02:16.6]} 13... Qa4 {[%clk 0:02:25.5]} 14. Bg5
{[%clk 0:01:59.5]} 14... Nd5 {[%clk 0:02:08.8]} 15. Bxe7 {[%clk 0:01:56.7]}
15... Nxe7 {[%clk 0:02:09.7]} 16. Qf3 {[%clk 0:01:48.5]} 16... Ng6 {[%clk
0:02:05.3]} 17. Qh5 {[%clk 0:01:43.8]} 17... h6 {[%clk 0:01:51.5]} 18. Nf6+
{[%clk 0:01:37.6]} 18... Kh8 {[%clk 0:01:39]} 19. Ng4 {[%clk 0:01:31]} 19... Nf4
{[%clk 0:01:35]} 20. Qh4 {[%clk 0:00:53.6]} 20... Nxd3 {[%clk 0:01:34.4]} 21.
Nxh6 {[%clk 0:00:53.2]} 21... Qxh4 {[%clk 0:01:33.5]} 0-1

[Event "Early-Titled-Tuesday-Blitz-April-16-2024"]
[Site "Chess.com"]
[Date "2024.04.16"]
[Round "8"]
[White "Stanbad1"]
[Black "Matibar"]
[Result "1-0"]
[WhiteElo "2592"]
[BlackElo "2802"]
[TimeControl "180+1"]
[EndTime "9:28:59 PDT"]
[Termination "Stanbad1 won by resignation"]

1. d4 {[%clk 0:03:00.9]} 1... Nf6 {[%clk 0:02:58.4]} 2. Nc3 {[%clk 0:02:56.4]}
2... d6 {[%clk 0:02:48.8]} 3. e4 {[%clk 0:02:54.4]} 3... e5 {[%clk 0:02:46.6]}
4. dxe5 {[%clk 0:02:52.9]} 4... dxe5 {[%clk 0:02:47.5]} 5. Qxd8+ {[%clk
0:02:52.9]} 5... Kxd8 {[%clk 0:02:48.4]} 6. Bc4 {[%clk 0:02:52.9]} 6... Be6
{[%clk 0:02:45.9]} 7. Bxe6 {[%clk 0:02:53.1]} 7... fxe6 {[%clk 0:02:46]} 8. f3
{[%clk 0:02:53.8]} 8... Bd6 {[%clk 0:02:44.2]} 9. Be3 {[%clk 0:02:53.7]} 9... a6
{[%clk 0:02:43.1]} 10. Nh3 {[%clk 0:02:53.9]} 10... Nbd7 {[%clk 0:02:42.7]} 11.
Nf2 {[%clk 0:02:54.2]} 11... Ke7 {[%clk 0:02:42.6]} 12. Nd3 {[%clk 0:02:53.7]}
12... b5 {[%clk 0:02:34.6]} 13. a4 {[%clk 0:02:53.3]} 13... b4 {[%clk
0:02:21.7]} 14. Nb1 {[%clk 0:02:49.5]} 14... c5 {[%clk 0:02:10.4]} 15. Nd2
{[%clk 0:02:33.7]} 15... Rac8 {[%clk 0:02:07.1]} 16. Nc4 {[%clk 0:02:33.1]}
16... Bb8 {[%clk 0:02:06.6]} 17. a5 {[%clk 0:02:30.7]} 17... h6 {[%clk
0:02:04.9]} 18. O-O-O {[%clk 0:02:30.1]} 18... g6 {[%clk 0:02:04.2]} 19. Rd2
{[%clk 0:02:28.6]} 19... g5 {[%clk 0:02:04.2]} 20. Rhd1 {[%clk 0:02:28.3]} 20...
g4 {[%clk 0:02:03.2]} 21. b3 {[%clk 0:02:18.9]} 21... Rhg8 {[%clk 0:01:55.7]}
22. Nb6 {[%clk 0:02:12.3]} 22... Nxb6 {[%clk 0:01:39.5]} 23. axb6 {[%clk
0:01:57.3]} 23... c4 {[%clk 0:01:37.2]} 24. Nxb4 {[%clk 0:01:53.4]} 24... cxb3
{[%clk 0:01:36.4]} 25. Nxa6 {[%clk 0:01:50.2]} 25... gxf3 {[%clk 0:01:03.6]} 26.
gxf3 {[%clk 0:01:46.1]} 26... Rc3 {[%clk 0:01:03.8]} 27. Bc5+ {[%clk 0:01:44]}
27... Kf7 {[%clk 0:01:03.3]} 28. Kb2 {[%clk 0:01:44]} 28... bxc2 {[%clk
0:01:03.6]} 29. Kxc3 {[%clk 0:01:36.2]} 29... cxd1=Q {[%clk 0:01:03]} 30. Rxd1
{[%clk 0:01:37.1]} 30... Rc8 {[%clk 0:00:56.6]} 31. Kb4 {[%clk 0:01:37]} 31...
Rg8 {[%clk 0:00:54]} 32. Kb5 {[%clk 0:01:36.4]} 1-0

[Event "Early-Titled-Tuesday-Blitz-April-16-2024"]
[Site "Chess.com"]
[Date "2024.04.16"]
[Round "8"]
[White "jinxy2009"]
[Black "NiranjanNavalgund"]
[Result "1-0"]
[WhiteElo "2350"]
[BlackElo "2491"]
[TimeControl "180+1"]
[EndTime "9:29:00 PDT"]
[Termination "jinxy2009 won by checkmate"]

1. e4 {[%clk 0:03:00.9]} 1... c5 {[%clk 0:02:24.6]} 2. Nf3 {[%clk 0:02:59.1]}
2... b6 {[%clk 0:02:24.8]} 3. d4 {[%clk 0:02:57]} 3... cxd4 {[%clk 0:02:25.2]}
4. Nxd4 {[%clk 0:02:57.7]} 4... Bb7 {[%clk 0:02:24.7]} 5. Nc3 {[%clk 0:02:58.2]}
5... e6 {[%clk 0:02:25.1]} 6. Be3 {[%clk 0:02:54.1]} 6... Bc5 {[%clk 0:02:22.2]}
7. Qd2 {[%clk 0:02:54]} 7... f6 {[%clk 0:02:22.2]} 8. O-O-O {[%clk 0:02:53.8]}
8... Ne7 {[%clk 0:02:22.7]} 9. Nb3 {[%clk 0:02:48]} 9... Bxe3 {[%clk 0:02:22.3]}
10. Qxe3 {[%clk 0:02:47]} 10... O-O {[%clk 0:02:23.2]} 11. h4 {[%clk 0:02:44.4]}
11... f5 {[%clk 0:02:23]} 12. e5 {[%clk 0:02:43.2]} 12... f4 {[%clk 0:02:22.9]}
13. Qd2 {[%clk 0:02:41.2]} 13... Nbc6 {[%clk 0:02:23.1]} 14. Nb5 {[%clk
0:02:21.6]} 14... Nxe5 {[%clk 0:01:56.8]} 15. Qd6 {[%clk 0:02:20.3]} 15... N7g6
{[%clk 0:01:55.9]} 16. h5 {[%clk 0:02:20.1]} 16... Nf7 {[%clk 0:01:55.5]} 17.
Qxd7 {[%clk 0:02:19.6]} 17... Qxd7 {[%clk 0:01:54]} 18. Rxd7 {[%clk 0:02:20.1]}
18... Bc6 {[%clk 0:01:52.6]} 19. Rc7 {[%clk 0:02:20.3]} 19... Bxb5 {[%clk
0:01:52.7]} 20. Bxb5 {[%clk 0:02:20]} 20... Nge5 {[%clk 0:01:52.6]} 21. Re1
{[%clk 0:02:14.7]} 21... Rac8 {[%clk 0:01:52.3]} 22. Rxa7 {[%clk 0:02:13.9]}
22... Nd6 {[%clk 0:01:51.7]} 23. Rxe5 {[%clk 0:02:11.6]} 23... f3 {[%clk
0:01:51.4]} 24. g3 {[%clk 0:02:09.5]} 24... Rfd8 {[%clk 0:01:48]} 25. a4 {[%clk
0:01:58]} 25... h6 {[%clk 0:01:47.3]} 26. Rxe6 {[%clk 0:01:58.1]} 26... Nxb5
{[%clk 0:01:43.8]} 27. axb5 {[%clk 0:01:57.7]} 27... Rd3 {[%clk 0:01:44.5]} 28.
Kb1 {[%clk 0:01:33]} 28... Rd1+ {[%clk 0:01:41.5]} 29. Ka2 {[%clk 0:01:33.1]}
29... Rd5 {[%clk 0:01:28.9]} 30. Rg6 {[%clk 0:01:30.2]} 30... Rxb5 {[%clk
0:01:26]} 31. Rgxg7+ {[%clk 0:01:30]} 31... Kf8 {[%clk 0:01:26.6]} 32. Raf7+
{[%clk 0:01:23.1]} 32... Ke8 {[%clk 0:01:26.7]} 33. Nd4 {[%clk 0:01:22.8]} 33...
Ra5+ {[%clk 0:01:22.1]} 34. Kb3 {[%clk 0:01:22.7]} 34... Rca8 {[%clk 0:01:23]}
35. Re7+ {[%clk 0:01:22.2]} 35... Kd8 {[%clk 0:01:21.7]} 36. Nc6+ {[%clk
0:01:22.2]} 36... Kc8 {[%clk 0:01:20.9]} 37. Rc7# {[%clk 0:01:22]} 1-0

[Event "Early-Titled-Tuesday-Blitz-April-16-2024"]
[Site "Chess.com"]
[Date "2024.04.16"]
[Round "8"]
[White "DanyKopy"]
[Black "knightinshiningarmour16"]
[Result "0-1"]
[WhiteElo "2523"]
[BlackElo "2361"]
[TimeControl "180+1"]
[EndTime "9:29:08 PDT"]
[Termination "knightinshiningarmour16 won by resignation"]

1. Nf3 {[%clk 0:03:00.9]} 1... d5 {[%clk 0:02:59.1]} 2. g3 {[%clk 0:03:01]} 2...
Nf6 {[%clk 0:02:58.9]} 3. Bg2 {[%clk 0:03:01.9]} 3... Bf5 {[%clk 0:02:59]} 4.
O-O {[%clk 0:03:02.5]} 4... c6 {[%clk 0:02:59.3]} 5. c4 {[%clk 0:03:02.7]} 5...
e6 {[%clk 0:02:59.6]} 6. Qb3 {[%clk 0:03:03.2]} 6... Qb6 {[%clk 0:02:59.4]} 7.
d4 {[%clk 0:03:01.7]} 7... h6 {[%clk 0:02:58.2]} 8. Nc3 {[%clk 0:03:00]} 8...
Nbd7 {[%clk 0:02:57.7]} 9. c5 {[%clk 0:02:58.9]} 9... Qxb3 {[%clk 0:02:57.6]}
10. axb3 {[%clk 0:02:59.8]} 10... a6 {[%clk 0:02:57.6]} 11. b4 {[%clk
0:03:00.4]} 11... Rc8 {[%clk 0:02:56]} 12. Nd2 {[%clk 0:02:57.3]} 12... g5
{[%clk 0:02:34.2]} 13. Nb3 {[%clk 0:02:57.2]} 13... Bg7 {[%clk 0:02:33.9]} 14.
Na5 {[%clk 0:02:56.9]} 14... Rb8 {[%clk 0:02:29.1]} 15. f3 {[%clk 0:02:56.2]}
15... Ng8 {[%clk 0:02:20.5]} 16. h4 {[%clk 0:02:53.9]} 16... Bxd4+ {[%clk
0:02:20]} 17. e3 {[%clk 0:02:49.3]} 17... Be5 {[%clk 0:02:17.8]} 18. e4 {[%clk
0:02:39.5]} 18... Bg6 {[%clk 0:01:56.9]} 19. f4 {[%clk 0:02:38.1]} 19... gxf4
{[%clk 0:01:52.7]} 20. gxf4 {[%clk 0:02:38]} 20... Bd4+ {[%clk 0:01:49.9]} 21.
Kh2 {[%clk 0:02:38]} 21... Ngf6 {[%clk 0:01:48.9]} 22. f5 {[%clk 0:02:36.1]}
22... Bh5 {[%clk 0:01:43.8]} 23. exd5 {[%clk 0:02:31.3]} 23... Be5+ {[%clk
0:01:26]} 24. Kh1 {[%clk 0:02:24.9]} 24... exd5 {[%clk 0:01:26.2]} 25. Bf4
{[%clk 0:02:19.4]} 25... Bxf4 {[%clk 0:01:26.2]} 26. Rxf4 {[%clk 0:02:20.3]}
26... O-O {[%clk 0:01:26.1]} 27. Rg1 {[%clk 0:02:05.1]} 27... Kh7 {[%clk
0:01:24.5]} 28. Re1 {[%clk 0:01:40]} 28... Rfe8 {[%clk 0:01:22.8]} 29. Rff1
{[%clk 0:01:40.4]} 29... Ne5 {[%clk 0:01:17.1]} 30. Ne2 {[%clk 0:01:33.2]} 30...
Nd3 {[%clk 0:01:13.9]} 31. Rd1 {[%clk 0:01:25.9]} 31... Bxe2 {[%clk 0:01:13.3]}
32. Rxd3 {[%clk 0:01:25.9]} 32... Bxd3 {[%clk 0:01:12.1]} 0-1

[Event "Early-Titled-Tuesday-Blitz-April-16-2024"]
[Site "Chess.com"]
[Date "2024.04.16"]
[Round "8"]
[White "chess123456s"]
[Black "Witik"]
[Result "1/2-1/2"]
[WhiteElo "2607"]
[BlackElo "2714"]
[TimeControl "180+1"]
[EndTime "9:29:09 PDT"]
[Termination "Game drawn by agreement"]

1. e4 {[%clk 0:03:00.9]} 1... c5 {[%clk 0:02:57]} 2. Nf3 {[%clk 0:03:00.7]} 2...
d6 {[%clk 0:02:57.4]} 3. d4 {[%clk 0:03:01.3]} 3... cxd4 {[%clk 0:02:58.3]} 4.
Nxd4 {[%clk 0:03:01.7]} 4... Nf6 {[%clk 0:02:59]} 5. Nc3 {[%clk 0:03:02.2]} 5...
a6 {[%clk 0:02:59.7]} 6. Rg1 {[%clk 0:03:00.9]} 6... e5 {[%clk 0:02:54.3]} 7.
Nb3 {[%clk 0:03:00.3]} 7... h5 {[%clk 0:02:53.6]} 8. h3 {[%clk 0:03:00.1]} 8...
h4 {[%clk 0:02:49.8]} 9. Bg5 {[%clk 0:02:57.8]} 9... Be7 {[%clk 0:02:48]} 10.
Bd3 {[%clk 0:02:52.2]} 10... Be6 {[%clk 0:02:45.2]} 11. Qe2 {[%clk 0:02:51.9]}
11... Nh5 {[%clk 0:02:33]} 12. Be3 {[%clk 0:02:48.8]} 12... Bg5 {[%clk
0:02:31.9]} 13. O-O-O {[%clk 0:02:48.3]} 13... Nc6 {[%clk 0:02:15]} 14. Kb1
{[%clk 0:02:47.8]} 14... Bxe3 {[%clk 0:02:09.4]} 15. Qxe3 {[%clk 0:02:46.7]}
15... Nf4 {[%clk 0:02:09.2]} 16. Ne2 {[%clk 0:02:44.9]} 16... Qf6 {[%clk
0:02:03.3]} 17. Nxf4 {[%clk 0:02:43.2]} 17... exf4 {[%clk 0:02:03.3]} 18. Qd2
{[%clk 0:02:43.7]} 18... Bxb3 {[%clk 0:01:52.5]} 19. axb3 {[%clk 0:02:40.4]}
19... O-O-O {[%clk 0:01:33.4]} 20. Bc4 {[%clk 0:02:31.7]} 20... Ne5 {[%clk
0:01:33.8]} 21. Bd5 {[%clk 0:02:31.6]} 21... Rd7 {[%clk 0:01:34.3]} 22. Qd4
{[%clk 0:02:29.3]} 22... Kb8 {[%clk 0:01:34.1]} 23. Qb6 {[%clk 0:02:21.3]} 23...
Rc8 {[%clk 0:01:29.4]} 24. Rd4 {[%clk 0:02:15.6]} 24... Qd8 {[%clk 0:01:25.9]}
25. Qb4 {[%clk 0:02:05.1]} 25... Qc7 {[%clk 0:01:20.5]} 26. c3 {[%clk
0:02:00.1]} 26... Qc5 {[%clk 0:01:18]} 27. Qa4 {[%clk 0:01:51.7]} 27... Re7
{[%clk 0:01:04]} 28. f3 {[%clk 0:01:50.6]} 28... Ka7 {[%clk 0:00:49.4]} 29. Rgd1
{[%clk 0:01:48.8]} 29... f6 {[%clk 0:00:42.5]} 30. b4 {[%clk 0:01:44.2]} 1/2-1/2

[Event "Early-Titled-Tuesday-Blitz-April-16-2024"]
[Site "Chess.com"]
[Date "2024.04.16"]
[Round "8"]
[White "GrotBchess"]
[Black "familijatop71"]
[Result "1-0"]
[WhiteElo "2448"]
[BlackElo "2316"]
[TimeControl "180+1"]
[EndTime "9:29:14 PDT"]
[Termination "GrotBchess won on time"]

1. e4 {[%clk 0:02:57]} 1... d5 {[%clk 0:01:24.6]} 2. exd5 {[%clk 0:02:55.4]}
2... Qxd5 {[%clk 0:01:25.5]} 3. Nc3 {[%clk 0:02:55.1]} 3... Qa5 {[%clk
0:01:26.1]} 4. Nf3 {[%clk 0:02:54.4]} 4... c6 {[%clk 0:01:26.5]} 5. d3 {[%clk
0:02:54]} 5... Nf6 {[%clk 0:01:24.9]} 6. Bd2 {[%clk 0:02:53.9]} 6... Qc7 {[%clk
0:01:24.6]} 7. Be2 {[%clk 0:02:53.9]} 7... Bg4 {[%clk 0:01:23.6]} 8. h3 {[%clk
0:02:53.3]} 8... Bh5 {[%clk 0:01:24]} 9. Be3 {[%clk 0:02:53.1]} 9... e6 {[%clk
0:01:22.6]} 10. Qd2 {[%clk 0:02:52.6]} 10... Nbd7 {[%clk 0:01:22.5]} 11. Bf4
{[%clk 0:02:52.6]} 11... Bd6 {[%clk 0:01:20.6]} 12. Bxd6 {[%clk 0:02:52.3]}
12... Qxd6 {[%clk 0:01:20.8]} 13. Ng5 {[%clk 0:02:49]} 13... Bxe2 {[%clk
0:01:16.9]} 14. Qxe2 {[%clk 0:02:49.9]} 14... h6 {[%clk 0:01:16.9]} 15. Nge4
{[%clk 0:02:50]} 15... Nxe4 {[%clk 0:01:17.3]} 16. dxe4 {[%clk 0:02:50.5]} 16...
e5 {[%clk 0:01:08]} 17. O-O {[%clk 0:02:49.9]} 17... O-O {[%clk 0:01:01.7]} 18.
Rad1 {[%clk 0:02:49]} 18... Qe6 {[%clk 0:00:56.3]} 19. Qe3 {[%clk 0:02:48.8]}
19... Nf6 {[%clk 0:00:29.2]} 20. a4 {[%clk 0:02:46.2]} 20... b6 {[%clk 0:00:24]}
21. b3 {[%clk 0:02:44.7]} 21... Rad8 {[%clk 0:00:22.3]} 22. Ne2 {[%clk
0:02:44.8]} 22... Qe7 {[%clk 0:00:16.8]} 23. Ng3 {[%clk 0:02:44.6]} 23... Rxd1
{[%clk 0:00:12.2]} 24. Rxd1 {[%clk 0:02:44.6]} 24... Rd8 {[%clk 0:00:12.5]} 25.
Rd3 {[%clk 0:02:43.5]} 25... Rxd3 {[%clk 0:00:12.1]} 26. Qxd3 {[%clk 0:02:42.7]}
26... Qd7 {[%clk 0:00:12.1]} 27. Qc3 {[%clk 0:02:27.6]} 27... Qe8 {[%clk
0:00:02.4]} 28. f3 {[%clk 0:02:23.5]} 28... c5 {[%clk 0:00:02.8]} 29. Nf5 {[%clk
0:02:23.2]} 29... Kh7 {[%clk 0:00:02.2]} 30. Qd3 {[%clk 0:02:20.2]} 30... g6
{[%clk 0:00:02.2]} 31. Ne3 {[%clk 0:02:19.9]} 31... Qe7 {[%clk 0:00:01.6]} 32.
Qc4 {[%clk 0:02:13.6]} 1-0